Cogmind - Beta 13 @@@ ROGUE MODE // 2024.03.31 @ 21:56:57 Player: lazy_engineer Result: Self-destructed Performance ------------- Evolutions (2) 1000 Regions Visited (4) 800 Robots Destroyed (53) 265 Value Destroyed (1566) 1566 Prototype IDs (0) 0 Alien Tech Used (0) 0 Bonus (-111) -111 TOTAL SCORE: 3520 Bonus ------- Follower Combat Kills 25 Friendly Fire -136 Cogmind --------- Core Integrity 120/550 Matter 5/300 Energy 91/100 System Corruption 0% Temperature Cool (0) Movement Walking (190) Ox1 Location -8/Materials Parts ------- > --- POWER (2) -------- (None) > --- PROPULSION (2) --- Improved Carbon-fiber Leg Improved Carbon-fiber Leg > --- UTILITY (5) ------ High-capacity Storage Unit Visual Processing Unit Signal Interpreter Hardened Heavy Armor Plating > --- WEAPON (2) ------- Assault Cannon > --- INVENTORY (20) --- Improved Carbon-fiber Leg Structural Scanner Terrain Scanner Terrain Scan Processor Terrain Scan Processor Terrain Scan Processor ECM Suite Assault Cannon Mining Laser Peak State ------------ > --- POWER ------------ (None) > --- PROPULSION ------- Improved Carbon-fiber Leg Improved Carbon-fiber Leg > --- UTILITY ---------- High-capacity Storage Unit Visual Processing Unit Signal Interpreter Hardened Heavy Armor Plating > --- WEAPON ----------- Assault Cannon Katana > --- INVENTORY -------- Improved Carbon-fiber Leg Structural Scanner Terrain Scanner Terrain Scan Processor Terrain Scan Processor Terrain Scan Processor ECM Suite Assault Cannon Mining Laser [Rating: 27] Favorites ----------- Power Improved Ion Engine Engine Improved Ion Engine Power Core Light Nuclear Core Propulsion Aluminum Leg Leg Aluminum Leg Utility Signal Interpreter Storage High-capacity Storage Unit Processor Signal Interpreter Protection Medium Armor Plating Weapon Autogun Ballistic Gun Autogun Ballistic Cannon Assault Cannon Special Weapon Mining Laser Slashing Weapon Katana Build | -11 -10 -9 -9 -8 ------- Run | Yrd Mat Mat Min Mat Slots Evolved 4 | . . 2 . 2 Power 1 | . . . . 1 Propulsion . | . . . . . Utility 3 | . . 2 . 1 Weapon . | . . . . . Parts Attached 50 | 5 13 10 9 13 Power 8 | 1 2 1 2 2 Engine 7 | 1 2 1 2 1 Core 1 | . . . . 1 Reactor . | . . . . . Propulsion 12 | 2 2 . 4 4 Treads . | . . . . . Leg 12 | 2 2 . 4 4 Wheel . | . . . . . Hover . | . . . . . Flight . | . . . . . Utility 14 | . 5 7 . 2 Device . | . . . . . Storage 4 | . 1 3 . . Processor 2 | . 1 1 . . Hackware . | . . . . . Protection 8 | . 3 3 . 2 Artifact . | . . . . . Weapon 16 | 2 4 2 3 5 Energy Gun . | . . . . . Energy Cannon . | . . . . . Ballistic Gun 9 | 2 4 1 2 . Ballistic Cannon 4 | . . . . 4 Launcher . | . . . . . Special Weapon 1 | . . 1 . . Impact Weapon . | . . . . . Slashing Weapon 2 | . . . 1 1 Piercing Weapon . | . . . . . Special Melee Weapon . | . . . . . Unidentified Prototypes . | . . . . . Parts Lost 21 | . 2 1 6 12 Power 4 | . 1 . . 3 Propulsion 5 | . . . 1 4 Utility 4 | . 1 1 1 1 Weapon 8 | . . . 4 4 Highest Loss Streak 4 | . 1 1 4 4 To Critical Strikes . | . . . . . Average Slot Usage (%) 86 | . 98 94 84 61 Engine 10 | . 13 7 11 5 Leg 21 | . 27 22 21 10 Storage 8 | . 6 11 11 9 Processor 12 | . 7 12 22 18 Protection 10 | . 12 18 2 2 Ballistic Gun 16 | . 27 16 13 . Ballistic Cannon 4 | . . . . 16 Special Weapon 1 | . . 5 . . Naked Turns . | . . . . . Heaviest Build 65 | 7 23 60 60 65 Greatest Support 36 | 20 20 20 20 36 Greatest Overweight (x) 16 | . 1 2 4 16 Average Overweight (x) . | . . 1 2 4 Largest Inventory Capacity 20 | 5 8 20 20 20 Average Capacity 11 | 5 6 11 20 20 Most Carried 12 | 2 8 10 10 12 Average Carried 7 | . 5 7 8 9 Final Capacity 20 | 5 8 20 20 20 Final Carried 9 | . 8 8 7 9 Class Distribution -------------------- 61% | Scavenger-Mutant 38% | Mutant Dominant Class ---------------- Mutant | -10/Materials Scavenger-Mutant | -9/Materials Scavenger-Mutant | -9/Mines Scavenger-Mutant | -8/Materials Resources | -11 -10 -9 -9 -8 ----------- Run | Yrd Mat Mat Min Mat Matter Collected 1568 | 262 418 331 175 382 Remotely . | . . . . . Salvage Created 1694 | 44 427 459 361 403 Parts 102 | 1 31 36 13 21 Haulers Intercepted . | . . . . . Recyclers Shooed . | . . . . . Parts Field Recycled . | . . . . . Retrieved Matter . | . . . . . Parts Self-Destructed . | . . . . . Prevented . | . . . . . Kills | -11 -10 -9 -9 -8 ------- Run | Yrd Mat Mat Min Mat Combat Hostiles Destroyed 45 | 1 11 13 6 14 Melee 1 | . . . 1 . Guns 30 | 1 11 13 5 . Cannons 14 | . . . . 14 Classes Destroyed 8 | 1 4 3 . . Worker 1 | . 1 . . . Builder 1 | . . 1 . . Operator 1 | . 1 . . . Watcher 4 | . 3 . . 1 Swarmer 13 | . 5 4 . 4 Grunt 25 | 1 6 6 5 7 Duelist 3 | . . 1 1 1 Sentry 4 | . . 2 . 2 Thug 1 | . . . 1 . Best Kill Streak 8 | 1 5 8 3 4 Combat Bots Only 8 | 1 3 8 3 4 Max Kills in Single Turn 2 | 1 2 1 1 1 Gunslinging . | . . . . . Exploded . | . . . . . Melee 1 | . . . 1 . Uniques/NPCs Destroyed . | . . . . . Combat | -11 -10 -9 -9 -8 -------- Run | Yrd Mat Mat Min Mat Hostile Shots Fired 358 | 2 96 82 46 132 Missed 105 | 1 33 27 9 35 Damage Taken 3600 | 10 694 553 557 1786 Core 675 | 10 41 76 118 430 Absorbed by Shields . | . . . . . Regen/Repaired (Parts) 75 | . . 75 . . Core Remaining (%) 75 | 96 79 . 51 . Volleys Fired 171 | 2 45 57 18 49 Largest 2 | 2 2 2 2 2 Hottest 123 | 40 46 123 46 88 Shots Fired 298 | 4 90 75 31 98 Gun 196 | 4 90 71 31 . Cannon 98 | . . . . 98 Launcher . | . . . . . Special 4 | . . 4 . . Kinetic 294 | 4 90 71 31 98 Thermal 4 | . . 4 . . Explosive . | . . . . . Electromagnetic . | . . . . . Robot Hit Streak 9 | 1 8 9 8 7 Robot Miss Streak 5 | 1 5 3 3 5 Penetration Max . | . . . . . Secondary Targets 6 | . 5 . 1 . Max Gunslinging Chain 1 | . 1 . 1 . Shots Hit Robots 177 | 2 49 43 24 59 Core Hits 77 | 1 21 21 10 24 Critical Kills . | . . . . . Critical Parts Destroyed . | . . . . . Critical Strikes 5 | . . . . 5 Blast 5 | . . . . 5 Melee Attacks 5 | . . . 3 2 Impact . | . . . . . Slashing 5 | . . . 3 2 Piercing . | . . . . . Sneak Attacks . | . . . . . Combat Hostiles . | . . . . . Follow-up Attacks . | . . . . . Damage Inflicted 3729 | 26 991 705 444 1563 Guns 1856 | 26 776 705 349 . Cannons 1503 | . . . . 1503 Explosions 215 | . 215 . . . Melee 155 | . . . 95 60 Ramming . | . . . . . Kinetic 3359 | 26 776 705 349 1503 Thermal . | . . . . . Explosive 215 | . 215 . . . Electromagnetic . | . . . . . Impact . | . . . . . Slashing 155 | . . . 95 60 Piercing . | . . . . . Highest Corruption . | . . . . . Average Corruption . | . . . . . Corruption Purged . | . . . . . Corruption Blocked . | . . . . . Overload Shots . | . . . . . Overflow Damage 109 | . 86 . . 23 Projectiles 23 | . . . . 23 Explosions 86 | . 86 . . . Melee . | . . . . . Knockbacks 12 | . . . . 12 Impact . | . . . . . Kinetic 11 | . . . . 11 Secondary 1 | . . . . 1 Self-Inflicted Damage . | . . . . . Shots . | . . . . . Rammed . | . . . . . Targets Rammed . | . . . . . Kicked . | . . . . . Crushed . | . . . . . Highest Temperature 326 | . 326 51 22 254 Average Temperature 76 | . 94 14 6 116 Received Heat Transfer 1347 | 6 324 138 204 675 Effects 5 | . 1 . . 4 Energy Bleed 3 | . 1 . . 2 Interference 2 | . . . . 2 Siege Activations . | . . . . . Robots Corrupted . | . . . . . Combat Hostiles . | . . . . . Parts Fried . | . . . . . Impact Corruptions . | . . . . . Robots Melted . | . . . . . Combat Hostiles . | . . . . . Parts Melted 2 | . 2 . . . Heat Transferred . | . . . . . Parts Sabotaged . | . . . . . Parts Stolen . | . . . . . Parts Stripped . | . . . . . Power Chain Reactions . | . . . . . Alert | -11 -10 -9 -9 -8 ------- Run | Yrd Mat Mat Min Mat Peak Influence 396 | 20 190 321 171 396 Initial 62 | . 13 18 62 62 Average 125 | 8 92 121 118 209 Maximum Alert Level 1 | . . 1 . 1 Low Security (%) 86 | 100 100 85 100 57 Level 1 13 | . . 14 . 42 Level 2 . | . . . . . Level 3 . | . . . . . Level 4 . | . . . . . Level 5 . | . . . . . High Security . | . . . . . Max Security . | . . . . . Squads Dispatched 5 | . 2 2 . 1 Investigation 2 | . 1 1 . . Extermination . | . . . . . Reinforcement 3 | . 1 1 . 1 Assault . | . . . . . Garrison . | . . . . . Intercept . | . . . . . Searches Triggered . | . . . . . Construction Impeded . | . . . . . Haulers Reinforced . | . . . . . Active Scanning Responses . | . . . . . Cargo Convoy Interrupts . | . . . . . Stealth | -11 -10 -9 -9 -8 --------- Run | Yrd Mat Mat Min Mat Distress Signals 10 | . 3 5 . 2 Communications Jammed . | . . . . . Distress Signals . | . . . . . Times Spotted 69 | 1 15 20 9 24 Peak Tracking Total 8 | 1 4 8 4 5 Tactical Retreats 1 | . . . 1 . Traps | -11 -10 -9 -9 -8 ------- Run | Yrd Mat Mat Min Mat Traps Triggered . | . . . . . Indirectly . | . . . . . Trap Hack Attempts . | . . . . . Triggered . | . . . . . Disarmed . | . . . . . Reprogrammed . | . . . . . Reused . | . . . . . Traps Extracted . | . . . . . Installed . | . . . . . Triggered . | . . . . . Machines | -11 -10 -9 -9 -8 ---------- Run | Yrd Mat Mat Min Mat Machines Disabled 6 | . 2 1 . 3 Max in Single Turn 2 | . 1 1 . 2 Machines Repaired . | . . . . . Machines Dismantled . | . . . . . Machines Sabotaged . | . . . . . Overloaded Fab Kills . | . . . . . Hacking | -11 -10 -9 -9 -8 --------- Run | Yrd Mat Mat Min Mat Machines Accessed 9 | . 6 3 . . Terminals 6 | . 4 2 . . Fabricators . | . . . . . Repair Stations 1 | . . 1 . . Recycling Units 2 | . 2 . . . Scanalyzers . | . . . . . Garrison Access . | . . . . . Total Hacks 24 | . 17 7 . . Successful 15 | . 10 5 . . Failed 9 | . 7 2 . . Catastrophic 1 | . 1 . . . Database Lockouts . | . . . . . Manual . | . . . . . Terminals 14 | . 10 4 . . Fabricators . | . . . . . Repair Stations 3 | . . 3 . . Recycling Units 7 | . 7 . . . Scanalyzers . | . . . . . Garrison Access . | . . . . . Terminal Hacks 11 | . 8 3 . . Record 5 | . 3 2 . . Locate Traps 2 | . 1 1 . . Dispatch Records 1 | . 1 . . . Investigation Status 1 | . 1 . . . Recall Reinforcements 1 | . 1 . . . Hauler Manifests 1 | . 1 . . . Fabricator Hacks . | . . . . . Repair Station Hacks 2 | . . 2 . . Scan Component 1 | . . 1 . . Repair 1 | . . 1 . . Recycling Unit Hacks 2 | . 2 . . . Report Inventory 2 | . 2 . . . Scanalyzer . | . . . . . Garrison Access Hacks . | . . . . . Unauthorized Hacks . | . . . . . Terminals . | . . . . . Fabricators . | . . . . . Repair Stations . | . . . . . Recycling Units . | . . . . . Scanalyzers . | . . . . . Garrison Access . | . . . . . Data Cores Recovered . | . . . . . Used . | . . . . . Hacking Detections 5 | . 3 2 . . Full Trace Events 2 | . 1 1 . . Feedback Events . | . . . . . Feedback Blocked . | . . . . . Robot Schematics Acquired . | . . . . . Robots Built . | . . . . . Authchips . | . . . . . Time . | . . . . . Total Robot Build Rating . | . . . . . Part Schematics Acquired . | . . . . . Parts Built . | . . . . . Authchips . | . . . . . Time . | . . . . . Total Part Build Rating . | . . . . . Parts Repaired 1 | . . 1 . . Time 32 | . . 32 . . Parts Recycled . | . . . . . Recycled Matter . | . . . . . Retrieved Matter . | . . . . . Retrieved Components . | . . . . . Parts Scanalyzed . | . . . . . Part Schematics Acquired . | . . . . . Parts Damaged . | . . . . . Bothacking | -11 -10 -9 -9 -8 ------------ Run | Yrd Mat Mat Min Mat Used RIF Installer . | . . . . . Robots Hacked . | . . . . . Non-combat . | . . . . . Combat . | . . . . . Robot Hacks Applied . | . . . . . Relay Couplers Released . | . . . . . Fabnet Peak Effective % . | . . . . . Robots Rewired . | . . . . . Allies Hacked . | . . . . . Hacks Repelled . | . . . . . Allies | -11 -10 -9 -9 -8 -------- Run | Yrd Mat Mat Min Mat Total Allies 2 | . . . 2 . Largest Group 2 | . . . 2 . Highest-Rated Group 39 | . . . 39 . Highest-Rated Ally 31 | . . . 31 . Total Orders . | . . . . . Ally Attacks 5 | . . . 5 . Total Damage 102 | . . . 102 . Kills 1 | . . . 1 . Allies Corrupted . | . . . . . Allies Melted . | . . . . . Intel | -11 -10 -9 -9 -8 ------- Run | Yrd Mat Mat Min Mat Robot Analysis Total . | . . . . . Derelict Logs Recovered . | . . . . . Drone Launches . | . . . . . Drone Recoveries . | . . . . . Exploration | -11 -10 -9 -9 -8 ------------- Run | Yrd Mat Mat Min Mat Turns Passed 2770 | 131 1184 528 241 686 Spaces Moved 1159 | 64 723 166 68 138 Core 35 | 16 . . . 19 Treads . | . . . . . Legs 1124 | 48 723 166 68 119 Wheels . | . . . . . Hover . | . . . . . Flight . | . . . . . Fastest Speed 50 | 50 120 120 260 190 Average Speed 181 | 102 140 208 262 366 Slowest Speed 850 | 120 190 260 400 850 Overloaded Moves . | . . . . . Propulsion Burnouts . | . . . . . Robots Hopped . | . . . . . Cave-ins Triggered . | . . . . . Exploration Rate (%) 34 | 6 91 29 24 23 Regions Visited 4 Branch Regions 1 Pre-discovered Areas . | . . . . . Known Exits Taken 3 | . 1 1 1 . Unknown Exits Taken 1 | 1 . . . . Scrap Searched . | . . . . . Spaces Dug 3 | . . 3 . . Terrain Destroyed 28 | . 8 3 . 17 Melee . | . . . . . Projectile 20 | . . 3 . 17 AOE 8 | . 8 . . . Terrain Rammed . | . . . . . Walls Destroyed . | . . . . . Machines Disabled . | . . . . . Actions | -11 -10 -9 -9 -8 --------- Run | Yrd Mat Mat Min Mat Total 1545 | 125 821 281 101 217 Wait 106 | 50 19 37 . . Move 1155 | 63 722 165 67 138 Hop . | . . . . . Pick Up 46 | 5 15 8 4 14 Fast Attach 4 | . 4 . . . Attach 36 | 5 7 6 5 13 Detach 1 | . . . . 1 Swap 10 | . 2 4 4 . Drop 11 | . 7 4 . . Fire 171 | 2 45 57 18 49 Melee 5 | . . . 3 2 Ram . | . . . . . Kick . | . . . . . Crush . | . . . . . Escape Stasis . | . . . . . Rewire . | . . . . . Trap . | . . . . . Miscellaneous . | . . . . . Route ------- -11/Scrapyard -10/Materials (discovered 4 exits: *Mat x3 / [*Min]) -9/Materials -9/Mines -8/Materials History --------- Turn | Location | Event 2 | -11/Scrapyard | Met Revision 17 64 | -11/Scrapyard | Discovered new exit (range 8) 132 | -11/Scrapyard | Entered Materials 305 | -10/Materials | Build established: Mutant 348 | -10/Materials | Discovered new exit (range 3) 417 | -10/Materials | Discovered new exit (range 8) 700 | -10/Materials | Discovered new exit (range 4) 758 | -10/Materials | Identified exit to Materials 942 | -10/Materials | Discovered exit to Materials (range 8) 1033 | -10/Materials | Build established: Scavenger-Mutant 1316 | -10/Materials | Entered another Materials area 1316 | -9/Materials | Evolved 2 slots: Utility x2 1515 | -9/Materials | Repaired Med. Armor Plating 1734 | -9/Materials | Destroyed 8 combat bots 1790 | -9/Materials | Discovered new exit (range 17) 1842 | -9/Materials | Identified exit to Mines 1844 | -9/Materials | Entered Mines 2041 | -9/Mines | Lost 4 parts (4w) 2067 | -9/Mines | Discovered new exit (range 7) 2083 | -9/Mines | Identified exit to Materials 2085 | -9/Mines | Entered Materials 2085 | -8/Materials | Evolved 2 slots: Power x1, Utility x1 2479 | -8/Materials | Lost 4 parts (1p2n1u) 2713 | -8/Materials | Build established: Mutant 2729 | -8/Materials | Core integrity fell below 50% 2771 | -8/Materials | Self-destructed Last Messages --------------- Knocked back. U-05 Engineer builds a Wall. Acquired 7 matter. Assault Cannon destroyed. U-05 Engineer destroyed. Acquired Terrain Scanner. U-05 Engineer builds a Door. Acquired Imp. Carbon-fiber Leg. Critical hit (Burn: +37). Acquired Imp. Carbon-fiber Leg. Penetrated by Slug. Knocked back. Acquired 3 matter. Acquired Imp. Carbon-fiber Leg. Acquired Hrd. Heavy Armor Plating. Acquired 13 matter. Knocked back. Acquired 4 matter. U-05 Engineer builds a Wall. Katana destroyed. Map ----- +----------------------------------------------------+ | ?????????????????????????????????????????????????? | | ?????????????????????????????????????????????????? | | ?????????????????????????????????????????????????? | | ??????????????????????????##?#???????????????????? | | ?????????????????????????? ? ???????????????????? | | ???????????????????????????" ????? ????????????? | | ???????????????????????????" ????? #???????????? | | ???????????????????????????? ????? #???????????? | | ???????????????????????? ? ????? #???????????? | | ?????????????????????????"""? ????? #???????????? | | ?????????????????????????"""? ????# #???????????? | | ??????????????????????????""?? ????# #???????????# | | ?????????????????????????? ?? ### # #????????? # | | ???????????????????????####+#######" ####+### | | ?????????????# ????# % "" ? | | ?????????????# ### % % T ? | | ?????????????# | | ?????????????# % #### #####???] ? | | ??????????????? """"" """" #??# % #??????# ? | | ?????????????????"""" """"" #??# %#??##### # | | ?????????????# """"" """"" ##?# #? # # | | ?????????????# %% ##?# #? # # | | ?????????????# u##?# % %#? # | | ??????????????# #####% ! ##?# %# [ # | | ??????????????# ????###ggg|;#?# % # # | | ???????????????????????# @* H=#?##% # # | | ???????????????????????#!!! % #??# # # | | ???????????????????????#!!!! #??# # # | | ???????????????????????########??# + # | | ?????????????????????????####????# # # | | ?????????????????????????????????# #??????# | | ?????????????????????????????????# ######## | | ?????????????????????????????????# | | ?????????????????????????????????# % ! | | ?????????????????????????????????# %/[% % % | | ?????????????????????????????????#% /[ ! % | | ?????????????????????????????????# [/ % | | ?????????????????????????????????# %####### | | ?????????????????????????????????# #???# | | ?????????????????????????????????# """ #???# | | ?????????????????????????????????# """ #???# | | ?????????????????????????????????# """ #??## | | ?????????????????????????????????# #??# | | ?????????????????????????????????# #??## | | ?????????????????????????????????# ^ #???# | | ?????????????????????????????????# #???# | | ?????????????????????????????????# #???# | | ?????????????????????????????????# !! #???### | | ?????????????????????????????????? !! #?????? | | ?????????????????????????????????????? != ??????? | +----------------------------------------------------+ Best States ------------- Heat Dissipation 31 Energy Generation 19 Energy Capacity 430 Matter Stores 300 Matter Capacity 300 Sight Range 18 Terrain Scan Density 10 Armor Coverage 600 Evasion (%) 55 Item Schematics ----------------- None Robot Schematics ------------------ None Fabricated ------------ Nothing Alien Tech Used ----------------- None Achievements -------------- Backstab Oops Shopping List Storm Trooper Challenges ------------ None Game ------ Seed ModifiedDecoyDerivative Manual? 0 Play Time 00:37:44 Cumulative 2.0 hours Start 2024.03.31 @ 21:17:02 End 2024.03.31 @ 21:56:57 Sessions 1 Manual Loads 0 Difficulty Rogue Special Mode None Game No. 2 Rogue 2 Adventurer 0 Explorer 0 Win Type - Total 0 Types 0/0/0/0/0/0/0/0/0 Lore% 3 Gallery% 4 Achievement% 4 Wizard Run 0 Options --------- Layout 1 ASCII 0 Keyboard 0 Movement Mouse Keybinds 0 Fullscreen 1 Font 32/SmallcapsGlow Map View 50x35 Zoom Use 0% Tactical HUD 0 Map Filters NONE Filters NONE Steam 1 RUN: 5ab0f581-6dde-4f1a-9412-9a6255906bf5